[Event "Late-Titled-Tuesday-Blitz-January-30-2024"]
[Site "Chess.com"]
[Date "2024.01.30"]
[Round "1"]
[White "Beca95"]
[Black "annasargsyan_m"]
[Result "0-1"]
[WhiteElo "2972"]
[BlackElo "2539"]
[TimeControl "180+1"]
[EndTime "14:06:46 PST"]
[Termination "annasargsyan_m won by checkmate"]

1. d4 {[%clk 0:02:49.5]} 1... d5 {[%clk 0:02:54.6]} 2. Nf3 {[%clk 0:02:47.8]}
2... Nf6 {[%clk 0:02:54.6]} 3. e3 {[%clk 0:02:47]} 3... Bf5 {[%clk 0:02:54.2]}
4. c4 {[%clk 0:02:39.9]} 4... c6 {[%clk 0:02:54.4]} 5. Nc3 {[%clk 0:02:38.6]}
5... e6 {[%clk 0:02:54]} 6. Be2 {[%clk 0:02:36.8]} 6... Nbd7 {[%clk 0:02:53.4]}
7. Nh4 {[%clk 0:02:35.3]} 7... Bg6 {[%clk 0:02:48.2]} 8. Qb3 {[%clk 0:02:26.5]}
8... Qc7 {[%clk 0:02:38.2]} 9. Nxg6 {[%clk 0:02:24.8]} 9... hxg6 {[%clk
0:02:37.5]} 10. g3 {[%clk 0:02:23.9]} 10... Bd6 {[%clk 0:02:35.4]} 11. Bd2
{[%clk 0:02:23]} 11... O-O {[%clk 0:02:16.2]} 12. h4 {[%clk 0:02:17.6]} 12...
dxc4 {[%clk 0:02:01]} 13. Bxc4 {[%clk 0:02:16.4]} 13... e5 {[%clk 0:02:01.7]}
14. O-O-O {[%clk 0:02:10]} 14... exd4 {[%clk 0:02:00.8]} 15. exd4 {[%clk
0:02:10.2]} 15... b5 {[%clk 0:01:59.6]} 16. Bd3 {[%clk 0:02:08.2]} 16... a5
{[%clk 0:02:00.3]} 17. Kb1 {[%clk 0:01:25.8]} 17... a4 {[%clk 0:01:41.8]} 18.
Qc2 {[%clk 0:01:24.6]} 18... Qa7 {[%clk 0:01:37.5]} 19. Be3 {[%clk 0:01:22.7]}
19... b4 {[%clk 0:01:37.8]} 20. Ne4 {[%clk 0:01:20.1]} 20... Nxe4 {[%clk
0:01:27.8]} 21. Bxe4 {[%clk 0:01:19.2]} 21... Rfc8 {[%clk 0:01:08.2]} 22. Qe2
{[%clk 0:01:00.6]} 22... Nf6 {[%clk 0:01:03.4]} 23. Qf3 {[%clk 0:01:00.2]} 23...
b3 {[%clk 0:00:51]} 24. a3 {[%clk 0:00:59.2]} 24... Bxa3 {[%clk 0:00:48.7]} 25.
bxa3 {[%clk 0:00:57]} 25... Qe7 {[%clk 0:00:49.2]} 26. Bxc6 {[%clk 0:00:47.9]}
26... Qxa3 {[%clk 0:00:47.9]} 27. Rd2 {[%clk 0:00:48]} 27... b2 {[%clk
0:00:29.3]} 28. Rxb2 {[%clk 0:00:47.3]} 28... Rab8 {[%clk 0:00:27.3]} 29. Bc1
{[%clk 0:00:39.1]} 29... Qd6 {[%clk 0:00:17.1]} 30. d5 {[%clk 0:00:38.7]} 30...
a3 {[%clk 0:00:16.9]} 31. Rxb8 {[%clk 0:00:37.8]} 31... Rxb8+ {[%clk 0:00:17.8]}
32. Ka2 {[%clk 0:00:37.3]} 32... Qb4 {[%clk 0:00:15.7]} 33. Qxa3 {[%clk
0:00:22.9]} 33... Qb1# {[%clk 0:00:14.4]} 0-1

[Event "Late-Titled-Tuesday-Blitz-January-30-2024"]
[Site "Chess.com"]
[Date "2024.01.30"]
[Round "1"]
[White "MKlose11"]
[Black "Bkmzzzzz"]
[Result "0-1"]
[WhiteElo "2627"]
[BlackElo "2350"]
[TimeControl "180+1"]
[EndTime "14:06:49 PST"]
[Termination "Bkmzzzzz won by checkmate"]

1. e4 {[%clk 0:02:53.7]} 1... d6 {[%clk 0:02:59]} 2. d4 {[%clk 0:02:52.6]} 2...
Nf6 {[%clk 0:02:59.5]} 3. Nc3 {[%clk 0:02:52.1]} 3... e5 {[%clk 0:02:59.5]} 4.
dxe5 {[%clk 0:02:50.7]} 4... dxe5 {[%clk 0:03:00.4]} 5. Qxd8+ {[%clk 0:02:51]}
5... Kxd8 {[%clk 0:03:01.3]} 6. Bc4 {[%clk 0:02:51.3]} 6... Be6 {[%clk
0:03:01.3]} 7. Bxe6 {[%clk 0:02:51.5]} 7... fxe6 {[%clk 0:03:02.2]} 8. Be3
{[%clk 0:02:51.5]} 8... Bd6 {[%clk 0:03:01.5]} 9. O-O-O {[%clk 0:02:50.9]} 9...
Ke7 {[%clk 0:03:01.7]} 10. f3 {[%clk 0:02:51.2]} 10... Nc6 {[%clk 0:03:01.8]}
11. Nge2 {[%clk 0:02:51.4]} 11... a6 {[%clk 0:03:02.4]} 12. Na4 {[%clk
0:02:50.7]} 12... Nd7 {[%clk 0:02:59]} 13. c4 {[%clk 0:02:47.6]} 13... b5 {[%clk
0:02:44.8]} 14. Nac3 {[%clk 0:02:39]} 14... bxc4 {[%clk 0:02:40.2]} 15. Kb1
{[%clk 0:02:36.2]} 15... Rhb8 {[%clk 0:02:33.6]} 16. Na4 {[%clk 0:02:27.7]}
16... Rb4 {[%clk 0:02:25]} 17. Nec3 {[%clk 0:02:27.5]} 17... Rab8 {[%clk
0:02:18.9]} 18. Rd2 {[%clk 0:02:27.3]} 18... h6 {[%clk 0:02:00.8]} 19. Rhd1
{[%clk 0:02:24]} 19... g5 {[%clk 0:01:15.3]} 20. h4 {[%clk 0:02:21.6]} 20... Rg8
{[%clk 0:01:04.3]} 21. hxg5 {[%clk 0:02:20.7]} 21... hxg5 {[%clk 0:01:04.2]} 22.
Rh1 {[%clk 0:02:18.7]} 22... Nf6 {[%clk 0:01:03.8]} 23. g4 {[%clk 0:02:15.4]}
23... Rbb8 {[%clk 0:00:46.8]} 24. Rdh2 {[%clk 0:02:09.5]} 24... Nd4 {[%clk
0:00:46.6]} 25. Rh3 {[%clk 0:02:05.4]} 25... c5 {[%clk 0:00:46]} 26. Kc1 {[%clk
0:01:57.7]} 26... Kf7 {[%clk 0:00:45.5]} 27. Kd1 {[%clk 0:01:45.8]} 27... Be7
{[%clk 0:00:43.4]} 28. Ke1 {[%clk 0:01:42.4]} 28... Nd7 {[%clk 0:00:42]} 29.
Rh7+ {[%clk 0:01:39.5]} 29... Rg7 {[%clk 0:00:42]} 30. R7h5 {[%clk 0:01:35]}
30... Rbg8 {[%clk 0:00:37.9]} 31. Kf2 {[%clk 0:01:32.8]} 31... Ke8 {[%clk
0:00:35.5]} 32. Rc1 {[%clk 0:01:25.4]} 32... Rf8 {[%clk 0:00:35.2]} 33. Rh3
{[%clk 0:01:22.8]} 33... Rgf7 {[%clk 0:00:35.6]} 34. Bxd4 {[%clk 0:01:22.4]}
34... exd4 {[%clk 0:00:30.9]} 35. Ne2 {[%clk 0:01:21.2]} 35... Ne5 {[%clk
0:00:31.5]} 36. Kg2 {[%clk 0:01:13]} 36... Rxf3 {[%clk 0:00:23.6]} 37. Rxf3
{[%clk 0:01:11.1]} 37... Rxf3 {[%clk 0:00:24.5]} 38. Nb6 {[%clk 0:01:08.2]}
38... Re3 {[%clk 0:00:21.4]} 39. Ng3 {[%clk 0:01:04.6]} 39... d3 {[%clk
0:00:20.3]} 40. Nf1 {[%clk 0:00:44.9]} 40... Re2+ {[%clk 0:00:20]} 41. Kg1
{[%clk 0:00:45.3]} 41... Rxe4 {[%clk 0:00:19.7]} 42. Nd2 {[%clk 0:00:43]} 42...
Rxg4+ {[%clk 0:00:20.4]} 43. Kf2 {[%clk 0:00:42.1]} 43... Rf4+ {[%clk
0:00:20.5]} 44. Ke3 {[%clk 0:00:42.3]} 44... Ng4# {[%clk 0:00:19.4]} 0-1

[Event "Late-Titled-Tuesday-Blitz-January-30-2024"]
[Site "Chess.com"]
[Date "2024.01.30"]
[Round "1"]
[White "Gentlejimmy7"]
[Black "PattyCastillo"]
[Result "1-0"]
[WhiteElo "2550"]
[BlackElo "1992"]
[TimeControl "180+1"]
[EndTime "14:06:49 PST"]
[Termination "Gentlejimmy7 won on time"]

1. c4 {[%clk 0:02:58]} 1... c6 {[%clk 0:02:58.3]} 2. d4 {[%clk 0:02:53.3]} 2...
d5 {[%clk 0:02:58]} 3. cxd5 {[%clk 0:02:53.5]} 3... cxd5 {[%clk 0:02:57.8]} 4.
Nf3 {[%clk 0:02:54.1]} 4... Nf6 {[%clk 0:02:57.7]} 5. Nc3 {[%clk 0:02:54.6]}
5... e6 {[%clk 0:02:55.4]} 6. Bf4 {[%clk 0:02:53.8]} 6... Bd6 {[%clk 0:02:55.2]}
7. Bg3 {[%clk 0:02:53.4]} 7... O-O {[%clk 0:02:55.2]} 8. e3 {[%clk 0:02:53.7]}
8... Nc6 {[%clk 0:02:47.6]} 9. Bd3 {[%clk 0:02:53.8]} 9... a6 {[%clk 0:02:47.2]}
10. Rc1 {[%clk 0:02:45.4]} 10... Qe7 {[%clk 0:02:46.3]} 11. O-O {[%clk
0:02:43.2]} 11... e5 {[%clk 0:02:32.9]} 12. dxe5 {[%clk 0:02:31.1]} 12... Nxe5
{[%clk 0:02:32.7]} 13. Nxe5 {[%clk 0:02:30.8]} 13... Bxe5 {[%clk 0:02:32.7]} 14.
Bb1 {[%clk 0:02:23]} 14... Bxg3 {[%clk 0:02:25.5]} 15. hxg3 {[%clk 0:02:23.9]}
15... Be6 {[%clk 0:02:23.4]} 16. Qd4 {[%clk 0:02:22.8]} 16... Rac8 {[%clk
0:02:14.9]} 17. b3 {[%clk 0:02:19.6]} 17... Rfd8 {[%clk 0:02:05.4]} 18. Rfd1
{[%clk 0:02:18.9]} 18... Qa3 {[%clk 0:01:51.8]} 19. Ne2 {[%clk 0:02:11.3]} 19...
h6 {[%clk 0:01:36.9]} 20. Qd2 {[%clk 0:02:05.1]} 20... Bg4 {[%clk 0:01:30.3]}
21. f3 {[%clk 0:01:56.1]} 21... Be6 {[%clk 0:01:26.7]} 22. Nd4 {[%clk
0:01:55.4]} 22... Qd6 {[%clk 0:01:19]} 23. g4 {[%clk 0:01:46.5]} 23... Qg3
{[%clk 0:01:12.9]} 24. Qf2 {[%clk 0:01:46.2]} 24... Qe5 {[%clk 0:01:06.6]} 25.
Bf5 {[%clk 0:01:37.9]} 25... Bxf5 {[%clk 0:00:57.8]} 26. Nxf5 {[%clk 0:01:36.7]}
26... Rxc1 {[%clk 0:00:52.7]} 27. Rxc1 {[%clk 0:01:35.5]} 27... Kh7 {[%clk
0:00:35.9]} 28. Qd2 {[%clk 0:01:23.7]} 28... g6 {[%clk 0:00:31.8]} 29. Qd4
{[%clk 0:01:15]} 29... Re8 {[%clk 0:00:23.2]} 30. Qxe5 {[%clk 0:01:01.9]} 30...
Rxe5 {[%clk 0:00:24.1]} 31. Nd6 {[%clk 0:01:02.4]} 31... Rxe3 {[%clk 0:00:19.9]}
32. Rc7 {[%clk 0:01:02.9]} 32... g5 {[%clk 0:00:11.5]} 33. Rxf7+ {[%clk
0:00:56]} 33... Kg6 {[%clk 0:00:11.1]} 34. Rxb7 {[%clk 0:00:56.9]} 34... Re2
{[%clk 0:00:10.6]} 35. Nf5 {[%clk 0:00:56.7]} 35... Ne8 {[%clk 0:00:06.3]} 36.
Rb6+ {[%clk 0:00:55.3]} 36... Kf7 {[%clk 0:00:03.9]} 37. Nxh6+ {[%clk
0:00:54.8]} 37... Kg7 {[%clk 0:00:03.1]} 38. Nf5+ {[%clk 0:00:54.8]} 38... Kf7
{[%clk 0:00:02.9]} 39. Rxa6 {[%clk 0:00:54.7]} 1-0

[Event "Late-Titled-Tuesday-Blitz-January-30-2024"]
[Site "Chess.com"]
[Date "2024.01.30"]
[Round "1"]
[White "The_Straightforward_Rook"]
[Black "Vladimir_2020"]
[Result "0-1"]
[WhiteElo "2418"]
[BlackElo "2733"]
[TimeControl "180+1"]
[EndTime "14:06:50 PST"]
[Termination "Vladimir_2020 won by resignation"]

1. d4 {[%clk 0:03:00.6]} 1... d5 {[%clk 0:02:59.3]} 2. Nf3 {[%clk 0:02:58.8]}
2... Nf6 {[%clk 0:02:52.2]} 3. c4 {[%clk 0:02:58.5]} 3... c6 {[%clk 0:02:52]} 4.
cxd5 {[%clk 0:02:58.5]} 4... cxd5 {[%clk 0:02:51.4]} 5. Nc3 {[%clk 0:02:59.2]}
5... Nc6 {[%clk 0:02:50.8]} 6. Bf4 {[%clk 0:02:59.2]} 6... Nh5 {[%clk
0:02:49.2]} 7. Bd2 {[%clk 0:02:57.7]} 7... g6 {[%clk 0:02:49]} 8. e3 {[%clk
0:02:52.2]} 8... Bg7 {[%clk 0:02:48.9]} 9. Bd3 {[%clk 0:02:52.8]} 9... O-O
{[%clk 0:02:48.5]} 10. O-O {[%clk 0:02:53.4]} 10... Bg4 {[%clk 0:02:34.7]} 11.
h3 {[%clk 0:02:47.9]} 11... Bxf3 {[%clk 0:02:34.3]} 12. Qxf3 {[%clk 0:02:48.8]}
12... e6 {[%clk 0:02:32.2]} 13. Rac1 {[%clk 0:02:47.1]} 13... f5 {[%clk
0:02:25.5]} 14. a3 {[%clk 0:02:39.4]} 14... Nf6 {[%clk 0:02:24]} 15. Rc2 {[%clk
0:02:36.1]} 15... Ne4 {[%clk 0:02:22.8]} 16. Bxe4 {[%clk 0:02:26.4]} 16... fxe4
{[%clk 0:02:17.8]} 17. Qg4 {[%clk 0:02:26.4]} 17... Qd7 {[%clk 0:02:12.3]} 18.
b4 {[%clk 0:02:24.1]} 18... Ne7 {[%clk 0:02:08.7]} 19. Rfc1 {[%clk 0:02:21.7]}
19... Rac8 {[%clk 0:02:02.2]} 20. Be1 {[%clk 0:02:14.4]} 20... Nf5 {[%clk
0:02:01.3]} 21. Qe2 {[%clk 0:02:05.8]} 21... Rc4 {[%clk 0:01:56.3]} 22. Nd1
{[%clk 0:01:49.2]} 22... Nd6 {[%clk 0:01:54.9]} 23. Nb2 {[%clk 0:01:43.4]} 23...
Rxc2 {[%clk 0:01:53.8]} 24. Rxc2 {[%clk 0:01:43.9]} 24... Rc8 {[%clk 0:01:45.9]}
25. a4 {[%clk 0:01:39.1]} 25... a6 {[%clk 0:01:36.3]} 26. Rc5 {[%clk 0:01:36.7]}
26... b6 {[%clk 0:01:34.5]} 27. Rc2 {[%clk 0:01:25.4]} 27... b5 {[%clk
0:01:31.8]} 28. axb5 {[%clk 0:01:22.2]} 28... axb5 {[%clk 0:01:31.6]} 29. Rc5
{[%clk 0:01:21.9]} 29... Bf8 {[%clk 0:01:31.2]} 30. Qc2 {[%clk 0:01:09.8]} 30...
Nc4 {[%clk 0:01:15.7]} 31. Rxc8 {[%clk 0:01:08.4]} 31... Qxc8 {[%clk 0:01:15.5]}
32. Nxc4 {[%clk 0:01:07.8]} 32... Qxc4 {[%clk 0:01:13.1]} 33. Qxc4 {[%clk
0:01:05.7]} 33... bxc4 {[%clk 0:01:06.1]} 34. b5 {[%clk 0:01:02.7]} 34... Bd6
{[%clk 0:01:06]} 35. Ba5 {[%clk 0:01:02.1]} 35... Kf7 {[%clk 0:01:04.6]} 36. Kf1
{[%clk 0:01:01.1]} 36... Ke8 {[%clk 0:01:04.4]} 37. b6 {[%clk 0:00:57.7]} 37...
Kd7 {[%clk 0:01:04.2]} 38. b7 {[%clk 0:00:55]} 38... Kc6 {[%clk 0:01:03.3]} 39.
Ke1 {[%clk 0:00:53]} 39... Kxb7 {[%clk 0:01:02.8]} 40. Kd2 {[%clk 0:00:53.6]}
40... Ka6 {[%clk 0:01:03.1]} 41. Bd8 {[%clk 0:00:51.8]} 41... Bb4+ {[%clk
0:01:01.6]} 42. Kc2 {[%clk 0:00:52.4]} 42... Kb5 {[%clk 0:01:00.8]} 43. g4
{[%clk 0:00:50.2]} 43... Be1 {[%clk 0:00:59.2]} 44. Bh4 {[%clk 0:00:50.1]} 44...
Ka4 {[%clk 0:00:56.7]} 45. Bg3 {[%clk 0:00:50.2]} 45... Ka3 {[%clk 0:00:53.3]}
46. g5 {[%clk 0:00:46.9]} 46... Ka4 {[%clk 0:00:51.2]} 47. Bh4 {[%clk
0:00:46.9]} 47... Kb5 {[%clk 0:00:49.4]} 48. Bg3 {[%clk 0:00:47]} 48... Kc6
{[%clk 0:00:49.3]} 49. Kd1 {[%clk 0:00:46]} 49... Bb4 {[%clk 0:00:47.6]} 50. Kc2
{[%clk 0:00:45.7]} 50... Bd6 {[%clk 0:00:47]} 51. Bh4 {[%clk 0:00:40.6]} 51...
Kb5 {[%clk 0:00:46.9]} 0-1

[Event "Late-Titled-Tuesday-Blitz-January-30-2024"]
[Site "Chess.com"]
[Date "2024.01.30"]
[Round "1"]
[White "aghasiyevkamal"]
[Black "GoValya"]
[Result "1-0"]
[WhiteElo "2631"]
[BlackElo "2312"]
[TimeControl "180+1"]
[EndTime "14:06:52 PST"]
[Termination "aghasiyevkamal won by resignation"]

1. d4 {[%clk 0:02:55.9]} 1... d5 {[%clk 0:02:57.6]} 2. c4 {[%clk 0:02:55.4]}
2... c6 {[%clk 0:02:57.7]} 3. Nc3 {[%clk 0:02:53.9]} 3... Nf6 {[%clk 0:02:57.5]}
4. e3 {[%clk 0:02:52.6]} 4... e6 {[%clk 0:02:57.6]} 5. Nf3 {[%clk 0:02:51.3]}
5... Be7 {[%clk 0:02:57.2]} 6. Bd3 {[%clk 0:02:51.3]} 6... dxc4 {[%clk
0:02:56.9]} 7. Bxc4 {[%clk 0:02:51.1]} 7... O-O {[%clk 0:02:56.6]} 8. O-O {[%clk
0:02:51]} 8... b5 {[%clk 0:02:52.7]} 9. Be2 {[%clk 0:02:51]} 9... Nbd7 {[%clk
0:02:52.8]} 10. b3 {[%clk 0:02:50.1]} 10... Bb7 {[%clk 0:02:50.7]} 11. Bb2
{[%clk 0:02:50.4]} 11... a6 {[%clk 0:02:43.6]} 12. Rc1 {[%clk 0:02:36.1]} 12...
c5 {[%clk 0:02:33.6]} 13. a4 {[%clk 0:02:31.7]} 13... b4 {[%clk 0:02:26.7]} 14.
Nb1 {[%clk 0:02:31.7]} 14... Ne4 {[%clk 0:02:06.7]} 15. Nbd2 {[%clk 0:02:30.1]}
15... Ndf6 {[%clk 0:02:01]} 16. Nxe4 {[%clk 0:02:24.4]} 16... Nxe4 {[%clk
0:01:59.7]} 17. Bd3 {[%clk 0:02:24]} 17... Rc8 {[%clk 0:01:49]} 18. Qe2 {[%clk
0:02:21.8]} 18... a5 {[%clk 0:01:44.4]} 19. Rfd1 {[%clk 0:02:15]} 19... Qb6
{[%clk 0:01:34.8]} 20. Ne5 {[%clk 0:02:11.3]} 20... Rfd8 {[%clk 0:01:17.3]} 21.
Nc4 {[%clk 0:02:03.3]} 21... Qa7 {[%clk 0:01:00.2]} 22. Bxe4 {[%clk 0:01:55.5]}
22... Bxe4 {[%clk 0:00:59.6]} 23. dxc5 {[%clk 0:01:55.7]} 23... Bxc5 {[%clk
0:00:51.5]} 24. Qg4 {[%clk 0:01:54.6]} 24... Bg6 {[%clk 0:00:48.8]} 25. h4
{[%clk 0:01:54.7]} 25... h5 {[%clk 0:00:48.2]} 26. Qg3 {[%clk 0:01:52.3]} 26...
Be7 {[%clk 0:00:38.9]} 27. Bd4 {[%clk 0:01:40.3]} 27... Qa8 {[%clk 0:00:28.2]}
28. Ne5 {[%clk 0:01:29.5]} 28... Rxc1 {[%clk 0:00:22.6]} 29. Rxc1 {[%clk
0:01:29.9]} 29... Qe4 {[%clk 0:00:15.9]} 30. Nxg6 {[%clk 0:01:26.6]} 30... Qxg6
{[%clk 0:00:11.3]} 31. Qxg6 {[%clk 0:01:25]} 31... fxg6 {[%clk 0:00:12.2]} 32.
Rc6 {[%clk 0:01:21.7]} 32... Kf7 {[%clk 0:00:11.4]} 33. Rc7 {[%clk 0:01:18.9]}
33... Rd5 {[%clk 0:00:07.1]} 34. Kf1 {[%clk 0:01:17.7]} 34... Kf8 {[%clk
0:00:06.8]} 35. f4 {[%clk 0:01:16]} 35... Bxh4 {[%clk 0:00:06.7]} 36. Ke2 {[%clk
0:01:14.7]} 36... Bf6 {[%clk 0:00:06.3]} 37. Bc5+ {[%clk 0:01:11]} 37... Kg8
{[%clk 0:00:05.6]} 38. e4 {[%clk 0:01:11.5]} 38... Rd8 {[%clk 0:00:04.4]} 39. e5
{[%clk 0:01:10.7]} 39... Bh4 {[%clk 0:00:03.8]} 40. Bd6 {[%clk 0:01:09.8]} 40...
Re8 {[%clk 0:00:04.1]} 41. Ra7 {[%clk 0:01:07.3]} 41... Bg3 {[%clk 0:00:04.7]}
42. Kf3 {[%clk 0:01:07.5]} 42... h4 {[%clk 0:00:04.8]} 43. Rxa5 {[%clk
0:01:06.4]} 43... Rc8 {[%clk 0:00:05.5]} 44. Rc5 {[%clk 0:01:06.1]} 44... Rxc5
{[%clk 0:00:05.7]} 45. Bxc5 {[%clk 0:01:06.5]} 45... Be1 {[%clk 0:00:05.5]} 46.
a5 {[%clk 0:01:07]} 46... Bc3 {[%clk 0:00:05.1]} 47. a6 {[%clk 0:01:07]} 1-0

[Event "Late-Titled-Tuesday-Blitz-January-30-2024"]
[Site "Chess.com"]
[Date "2024.01.30"]
[Round "1"]
[White "powermove"]
[Black "arenal72"]
[Result "0-1"]
[WhiteElo "2067"]
[BlackElo "2562"]
[TimeControl "180+1"]
[EndTime "14:06:52 PST"]
[Termination "arenal72 won on time"]

1. d4 {[%clk 0:02:44.8]} 1... d6 {[%clk 0:02:58.1]} 2. c4 {[%clk 0:02:42.6]}
2... e5 {[%clk 0:02:57.6]} 3. Nf3 {[%clk 0:02:32.7]} 3... e4 {[%clk 0:02:57.6]}
4. Ng1 {[%clk 0:02:30.2]} 4... f5 {[%clk 0:02:56.2]} 5. Nc3 {[%clk 0:02:29]}
5... Nf6 {[%clk 0:02:55.4]} 6. Bg5 {[%clk 0:02:26.8]} 6... Be7 {[%clk
0:02:54.2]} 7. e3 {[%clk 0:02:25.8]} 7... O-O {[%clk 0:02:52.3]} 8. f3 {[%clk
0:02:22.1]} 8... exf3 {[%clk 0:02:31.7]} 9. Nxf3 {[%clk 0:02:19.1]} 9... Ne4
{[%clk 0:02:23.2]} 10. Bxe7 {[%clk 0:02:17.4]} 10... Qxe7 {[%clk 0:02:24.1]} 11.
Nd5 {[%clk 0:02:02.5]} 11... Qf7 {[%clk 0:02:23.3]} 12. Bd3 {[%clk 0:02:00.5]}
12... Be6 {[%clk 0:02:13.1]} 13. Nf4 {[%clk 0:01:32.2]} 13... Bxc4 {[%clk
0:02:03.1]} 14. O-O {[%clk 0:01:26.4]} 14... Bxd3 {[%clk 0:01:59.3]} 15. Qxd3
{[%clk 0:01:26.4]} 15... c6 {[%clk 0:01:52.7]} 16. d5 {[%clk 0:01:15.7]} 16...
Nd7 {[%clk 0:01:49.9]} 17. Rac1 {[%clk 0:01:02.8]} 17... Ndc5 {[%clk 0:01:41.4]}
18. Qc4 {[%clk 0:00:49.9]} 18... a5 {[%clk 0:01:35.1]} 19. dxc6 {[%clk
0:00:46.5]} 19... Qxc4 {[%clk 0:01:29.2]} 20. Rxc4 {[%clk 0:00:45.6]} 20... bxc6
{[%clk 0:01:29.5]} 21. a3 {[%clk 0:00:44.6]} 21... a4 {[%clk 0:01:26]} 22. Rd1
{[%clk 0:00:41.2]} 22... d5 {[%clk 0:01:20.2]} 23. Rc2 {[%clk 0:00:34.7]} 23...
g5 {[%clk 0:01:09.7]} 24. Nd3 {[%clk 0:00:28]} 24... Nxd3 {[%clk 0:01:03.5]} 25.
Rxd3 {[%clk 0:00:27.3]} 25... Rf6 {[%clk 0:01:00.9]} 26. Nd4 {[%clk 0:00:21.2]}
26... Rc8 {[%clk 0:00:54.9]} 27. b3 {[%clk 0:00:08.3]} 27... axb3 {[%clk
0:00:48.1]} 28. Nxb3 {[%clk 0:00:08.3]} 28... Ra8 {[%clk 0:00:42.6]} 29. Nd4
{[%clk 0:00:04.1]} 29... c5 {[%clk 0:00:42.3]} 30. Nb5 {[%clk 0:00:03.1]} 30...
Ra5 {[%clk 0:00:34.7]} 31. Rxd5 {[%clk 0:00:01.3]} 31... Rxb5 {[%clk 0:00:32.2]}
0-1

[Event "Late-Titled-Tuesday-Blitz-January-30-2024"]
[Site "Chess.com"]
[Date "2024.01.30"]
[Round "1"]
[White "SchmakAttack"]
[Black "Boninknights"]
[Result "1-0"]
[WhiteElo "2743"]
[BlackElo "2425"]
[TimeControl "180+1"]
[EndTime "14:06:55 PST"]
[Termination "SchmakAttack won by resignation"]

1. Nf3 {[%clk 0:02:59]} 1... Nf6 {[%clk 0:02:58.5]} 2. c4 {[%clk 0:02:56.9]}
2... g6 {[%clk 0:02:57.6]} 3. g3 {[%clk 0:02:56]} 3... Bg7 {[%clk 0:02:57.4]} 4.
Nc3 {[%clk 0:02:54.2]} 4... O-O {[%clk 0:02:56.6]} 5. Bg2 {[%clk 0:02:52.1]}
5... d5 {[%clk 0:02:54]} 6. cxd5 {[%clk 0:02:51.9]} 6... Nxd5 {[%clk 0:02:53.5]}
7. h4 {[%clk 0:02:50.8]} 7... Nf6 {[%clk 0:02:45.5]} 8. d4 {[%clk 0:02:45.2]}
8... Nc6 {[%clk 0:02:41.1]} 9. d5 {[%clk 0:02:38.4]} 9... Nb4 {[%clk 0:02:39.5]}
10. e4 {[%clk 0:02:38.3]} 10... c6 {[%clk 0:02:31.5]} 11. a3 {[%clk 0:02:25.8]}
11... Na6 {[%clk 0:02:23.7]} 12. O-O {[%clk 0:02:10.6]} 12... cxd5 {[%clk
0:02:19.7]} 13. exd5 {[%clk 0:02:06.1]} 13... Nc7 {[%clk 0:02:16.8]} 14. Ne5
{[%clk 0:01:53.7]} 14... Nfxd5 {[%clk 0:02:08.4]} 15. Nxf7 {[%clk 0:01:53.4]}
15... Rxf7 {[%clk 0:01:56.3]} 16. Nxd5 {[%clk 0:01:53.1]} 16... Be6 {[%clk
0:01:50.9]} 17. Nf4 {[%clk 0:01:30]} 17... Bc4 {[%clk 0:01:44]} 18. Re1 {[%clk
0:01:24.6]} 18... e5 {[%clk 0:01:37.5]} 19. Nh3 {[%clk 0:01:22.9]} 19... Rd7
{[%clk 0:01:17.7]} 20. Qc2 {[%clk 0:01:05.6]} 20... Bd5 {[%clk 0:01:13.2]} 21.
Ng5 {[%clk 0:01:01.5]} 21... h6 {[%clk 0:01:06.2]} 22. Bxd5+ {[%clk 0:00:50.3]}
22... Rxd5 {[%clk 0:01:01.3]} 23. Ne4 {[%clk 0:00:44.1]} 23... Ne6 {[%clk
0:00:56]} 24. Be3 {[%clk 0:00:40.6]} 24... Nd4 {[%clk 0:00:52.5]} 25. Bxd4
{[%clk 0:00:39.9]} 25... exd4 {[%clk 0:00:51.6]} 26. Rad1 {[%clk 0:00:40.3]}
26... d3 {[%clk 0:00:50.6]} 27. Qb3 {[%clk 0:00:40.4]} 27... Kh7 {[%clk
0:00:46.8]} 28. Re3 {[%clk 0:00:40.5]} 28... Rc8 {[%clk 0:00:37.2]} 29. Rexd3
{[%clk 0:00:38.5]} 29... Rxd3 {[%clk 0:00:36.2]} 30. Rxd3 {[%clk 0:00:38.1]}
30... Rc1+ {[%clk 0:00:34.7]} 31. Kg2 {[%clk 0:00:37.9]} 31... Qe7 {[%clk
0:00:30.9]} 32. Qd5 {[%clk 0:00:31.1]} 32... Bxb2 {[%clk 0:00:22.8]} 33. Rb3
{[%clk 0:00:28.9]} 33... Bxa3 {[%clk 0:00:18.5]} 34. Rxb7 {[%clk 0:00:25]} 34...
Rc7 {[%clk 0:00:17.9]} 35. Nf6+ {[%clk 0:00:25.3]} 35... Kg7 {[%clk 0:00:17]}
36. Rxc7 {[%clk 0:00:25.3]} 1-0

[Event "Late-Titled-Tuesday-Blitz-January-30-2024"]
[Site "Chess.com"]
[Date "2024.01.30"]
[Round "1"]
[White "Njal28"]
[Black "tgpgoat"]
[Result "1-0"]
[WhiteElo "3035"]
[BlackElo "2530"]
[TimeControl "180+1"]
[EndTime "14:06:59 PST"]
[Termination "Njal28 won by resignation"]

1. e4 {[%clk 0:03:00.9]} 1... c5 {[%clk 0:02:58.5]} 2. Nf3 {[%clk 0:02:58.5]}
2... e6 {[%clk 0:02:58.7]} 3. d4 {[%clk 0:02:58]} 3... cxd4 {[%clk 0:02:59.6]}
4. Qxd4 {[%clk 0:02:58.7]} 4... Nc6 {[%clk 0:02:59.5]} 5. Qe3 {[%clk 0:02:59.1]}
5... d6 {[%clk 0:02:58.1]} 6. Nc3 {[%clk 0:02:58.7]} 6... Nf6 {[%clk 0:02:58.2]}
7. b3 {[%clk 0:02:58.4]} 7... a6 {[%clk 0:02:57.8]} 8. Bb2 {[%clk 0:02:58.7]}
8... Be7 {[%clk 0:02:58]} 9. O-O-O {[%clk 0:02:59.2]} 9... O-O {[%clk 0:02:58]}
10. Rg1 {[%clk 0:02:56]} 10... Qc7 {[%clk 0:02:56]} 11. g4 {[%clk 0:02:47.9]}
11... b5 {[%clk 0:02:55.3]} 12. g5 {[%clk 0:02:47.7]} 12... Nd7 {[%clk
0:02:55.1]} 13. h4 {[%clk 0:02:44]} 13... Bb7 {[%clk 0:02:54.6]} 14. h5 {[%clk
0:02:30.8]} 14... Rac8 {[%clk 0:02:51.3]} 15. g6 {[%clk 0:02:18.1]} 15... Nce5
{[%clk 0:02:36.5]} 16. Nxe5 {[%clk 0:02:01.2]} 16... dxe5 {[%clk 0:02:31.1]} 17.
Bd3 {[%clk 0:01:56.5]} 17... b4 {[%clk 0:02:23.8]} 18. Na4 {[%clk 0:01:45.9]}
18... Nc5 {[%clk 0:02:20.9]} 19. Nxc5 {[%clk 0:01:40.7]} 19... Bxc5 {[%clk
0:02:21.8]} 20. Qg3 {[%clk 0:01:35.9]} 20... f6 {[%clk 0:01:43.2]} 21. h6 {[%clk
0:01:27.2]} 21... gxh6 {[%clk 0:01:28]} 22. gxh7+ {[%clk 0:01:25.1]} 22... Kh8
{[%clk 0:01:28.2]} 23. Qh4 {[%clk 0:00:48]} 23... Qxh7 {[%clk 0:00:48.6]} 24.
Rg4 {[%clk 0:00:48.3]} 24... Rc7 {[%clk 0:00:38]} 25. Rdg1 {[%clk 0:00:38.2]}
25... Rcf7 {[%clk 0:00:08.9]} 26. Rg6 {[%clk 0:00:36]} 26... h5 {[%clk
0:00:09.3]} 27. Kb1 {[%clk 0:00:27.7]} 27... Be7 {[%clk 0:00:06.6]} 28. Qh3
{[%clk 0:00:21.9]} 28... Bc8 {[%clk 0:00:04.4]} 29. Bc1 {[%clk 0:00:21.2]} 29...
Rg7 {[%clk 0:00:02.5]} 30. Rxg7 {[%clk 0:00:21.1]} 30... Qxg7 {[%clk 0:00:02.5]}
31. Rxg7 {[%clk 0:00:22]} 31... Kxg7 {[%clk 0:00:03.2]} 32. Bc4 {[%clk
0:00:21.5]} 32... Rh8 {[%clk 0:00:02.4]} 33. Bxe6 {[%clk 0:00:21.6]} 33... Bxe6
{[%clk 0:00:02.6]} 34. Qxe6 {[%clk 0:00:22.5]} 1-0